bitfinex/quotes_ETHUSD_20240827
["timestamp","ask_amount","ask_price","bid_price","bid_amount"]
[1724720285851,6.05958,2679.9,2679.2,3.77831742]
[1724720285852,6.05958,2679.9,2679.3,3.73231]
[1724720286051,2.3281,2679.9,2679.4,3.73215]
[1724720286359,2.3281,2679.9,2679.5,0.04590742]
[1724720287059,10.868217,2679.9,2679.5,0.04590742]
[1724720287356,7.136637,2679.9,2679.3,3.73231]
[1724720287741,9.6081,2680.2,2679.4,0.04590742]
[1724720287944,1.93197613,2680.5,2679.4,0.04590742]
[1724720287945,3.73073,2680.5,2679.7,3.73162]
[1724720288129,3.7308,2680.4,2679.8,0.07462222]
[1724720288560,3.7308,2680.4,2679.9,0.04610735]
[1724720288724,5.437763,2680.4,2679.9,0.04610735]
[1724720288925,1.706963,2680.4,2679.8,3.80616222]
[1724720289124,7.46148,2680.5,2679.8,3.80616222]
[1724720289433,2.3281,2680.2,2679.9,0.04610735]
[1724720289631,2.3281,2680.2,2679.5,3.73193]
[1724720289632,3.73129,2680.1,2679.5,3.73193]
[1724720289945,3.73129,2680.1,2679.6,0.04430602]
[1724720290559,2.3281,2680.2,2679.7,3.73174]
[1724720290762,2.3281,2680.2,2679.7,3.77605316]
[1724720291522,6.0592,2680.2,2679.7,3.77605316]
[1724720291745,6.0592,2680.2,2679.7,0.04431316]
[1724720291947,2.3281,2680.2,2679.7,3.73168]
[1724720292148,2.3281,2680.2,2679.8,0.04429888]
[1724720292338,6.15511,2680.5,2679.8,0.07462777]
[1724720292538,9.88584,2680.5,2679.9,3.77572888]
[1724720293262,3.73093,2680.3,2679.9,0.04429888]
[1724720293460,3.73093,2680.3,2679.7,7.46333]
[1724720293760,3.73093,2680.3,2679.8,0.04429888]
[1724720294059,4.719534,2680.3,2679.9,0.04429888]
[1724720294223,8.450544,2680.3,2679.7,3.73166]
[1724720294420,3.73114,2680.2,2679.8,0.04429888]
[1724720294681,3.73114,2680.2,2679.7,3.73166]
[1724720294973,3.73114,2680.2,2679.9,0.04429888]
[1724720295125,3.73114,2680.2,2679.7,3.73166]
[1724720295661,3.73114,2680.2,2679.8,0.04429888]
[1724720295848,4.477334,2680.2,2679.7,3.73166]
[1724720296024,2.4244,2680.1,2679.8,0.04429888]
[1724720296228,2.4244,2680.1,2679.5,3.73196]
[1724720296441,2.4244,2680.1,2679.6,3.77607888]
[1724720296644,6.15561,2680.1,2679.6,3.77607888]
[1724720297868,3.73134,2680.0,2679.6,0.04429888]
[1724720300571,7.28,2680.6,2680.0,3.73123]
[1724720300742,2.70992099,2681.2,2679.6,2.47349888]
[1724720300743,7.28,2680.8,2680.4,3.73065]
[1724720301076,8.08953785,2681.4,2680.4,4.37442231]
[1724720301276,3.72962,2681.3,2680.6,3.73043]
[1724720301430,3.72969,2681.2,2680.6,3.73043]
[1724720301626,3.72969,2681.2,2680.6,3.73041]
[1724720301831,3.72969,2681.2,2680.7,0.04417037]
[1724720302033,3.73005,2681.0,2680.7,0.04417037]
[1724720302256,3.73005,2681.0,2680.4,3.73071]
[1724720302431,3.73005,2681.0,2680.5,0.04395625]
[1724720302632,3.7301,2680.9,2680.5,0.04395625]
[1724720302931,3.7301,2680.9,2680.2,6.16025]
[1724720302932,6.1545,2680.9,2680.2,3.73105]
[1724720303169,6.1545,2680.9,2680.6,0.04395625]
[1724720303467,3.7305,2680.6,2680.0,3.73129]
[1724720303675,3.7305,2680.6,2679.8,3.73149]
[1724720303875,3.73079,2680.4,2679.8,3.73149]
[1724720304240,2.4244,2680.5,2679.8,3.73149]
[1724720304567,2.4244,2680.5,2680.0,3.73132]
[1724720305667,6.15504,2680.5,2680.0,3.73132]
[1724720305868,6.15504,2680.5,2679.8,7.46302]
[1724720306075,6.15504,2680.5,2679.9,3.73146]
[1724720307079,3.73079,2680.4,2679.8,3.73149]
[1724720307274,2.4244,2680.5,2679.8,3.73149]
[1724720307567,2.4244,2680.5,2680.0,3.73123]
[1724720307568,4.36539905,2680.5,2680.0,3.73123]
[1724720307946,2.4244,2680.5,2680.0,3.73123]
[1724720308459,1.94099905,2680.4,2680.0,3.73123]
[1724720308786,2.4244,2680.5,2680.0,3.73123]
[1724720308787,4.36539905,2680.5,2680.0,3.73123]
[1724720310291,4.36539905,2680.5,2680.0,7.46247]
[1724720310445,4.36539905,2680.5,2680.0,3.73123]
[1724720310649,4.36539905,2680.5,2680.1,0.04237916]
[1724720310996,1.94099905,2680.5,2680.1,3.77356916]
[1724720311497,1.94332738,2680.5,2680.2,3.73106]
[1724720311644,1.94332738,2680.5,2680.3,3.73089]
[1724720311845,1.94332738,2680.6,2680.4,0.04237916]
[1724720313080,1.94332738,2680.6,2680.1,4.48155992]
[1724720313293,5.67405738,2680.5,2679.8,4.720865]
[1724720313608,5.67405738,2680.5,2680.2,0.04237916]
[1724720313609,4.37052738,2680.4,2680.2,0.04237916]
[1724720313891,1.94332738,2680.5,2680.1,3.7312]
[1724720314098,4.37052738,2680.7,2680.3,3.73083]
[1724720314265,7.28,2680.8,2680.5,7.46113]
[1724720314266,1.94332738,2680.8,2680.5,7.46113]
[1724720314467,1.94332738,2680.8,2680.5,3.73056]
[1724720314656,1.94332738,2681.0,2680.6,0.04237916]
[1724720314853,1.94332738,2681.0,2680.7,3.73036]
[1724720315051,1.94332738,2681.0,2680.5,3.73053]
[1724720315290,1.94332738,2680.9,2680.3,3.73078]
[1724720315450,10.9319224,2681.0,2680.6,0.04237916]
[1724720315650,1.94332738,2680.9,2680.4,3.73077]
[1724720315960,1.94332738,2680.9,2680.5,3.77300916]
[1724720316184,5.67297261,2681.0,2680.5,7.50355916]
[1724720316468,1.94243719,2681.1,2680.6,0.04237916]
[1724720316685,7.57356037,2681.1,2680.6,0.04237916]
[1724720317000,7.46005,2681.0,2680.6,0.04237916]
[1724720317151,3.7301,2680.9,2680.6,0.04237916]
[1724720317356,6.1573,2680.9,2680.3,7.46168]
[1724720317588,6.1573,2680.9,2680.7,0.04237916]
[1724720317898,3.73038,2680.7,2680.0,3.73133]
[1724720318119,3.73038,2680.7,2680.2,3.73105]
[1724720318895,3.73038,2680.7,2680.3,0.04237916]
[1724720319379,6.15736,2680.9,2680.3,3.73092]
[1724720319692,3.72987,2681.1,2680.6,3.73048]
[1724720320000,5.073577,2681.1,2680.6,3.73048]
[1724720320358,5.073577,2681.1,2680.7,0.04237916]
[1724720321200,3.72995,2681.0,2680.7,0.04237916]
[1724720321405,7.46044,2680.8,2680.7,0.04237916]
[1724720321709,3.73022,2680.8,2680.7,0.04135709]
[1724720321883,3.7304,2680.7,2680.1,6.73111]
[1724720322051,6.18906,2680.9,2680.3,3.73091]
[1724720322482,2.4589,2680.9,2680.5,3.73062]
[1724720322892,5.073567,2681.1,2680.5,3.73062]
[1724720322893,5.073567,2681.1,2680.6,0.04135709]
[1724720323094,9.7389,2681.2,2680.7,3.73034]
[1724720323318,7.28,2681.2,2680.9,3.72996]
[1724720323455,7.28,2681.2,2680.8,0.04135709]
[1724720323803,2.4589,2681.1,2680.4,3.7307]
[1724720324056,2.4589,2681.1,2680.9,0.04135709]
[1724720324333,3.72996,2681.0,2680.5,3.73062]
[1724720324536,2.4589,2681.1,2680.5,3.73052]
[1724720324699,3.72977,2681.2,2680.5,4.103572]
[1724720325305,7.45955,2681.2,2680.6,3.73042]
[1724720325510,7.45954,2681.2,2680.5,7.834132]
[1724720325717,7.45954,2681.2,2680.5,7.834122]
[1724720325925,7.45954,2681.2,2680.5,4.103572]
[1724720326126,3.72977,2681.2,2680.5,4.103572]
[1724720326832,3.72977,2681.2,2680.6,3.73043]
[1724720327205,7.45954,2681.2,2680.6,3.73043]
[1724720327590,7.45957,2681.2,2680.5,7.834132]
[1724720327817,3.72977,2681.2,2680.5,7.834132]
[1724720328028,3.72977,2681.2,2680.6,4.5138732]
[1724720328898,3.72977,2681.2,2680.7,3.73036]
[1724720329602,7.45953,2681.2,2680.6,0.7834132]
[1724720329800,3.7299,2681.1,2680.5,4.103562]
[1724720330332,7.28,2681.5,2680.9,3.73003]
[1724720330485,7.28,2681.5,2681.0,3.72987]
[1724720331027,11.00934,2681.5,2681.0,3.72987]
[1724720331539,11.00934,2681.5,2680.8,3.73018]
[1724720331540,11.00934,2681.5,2680.9,3.73006]
[1724720331684,7.45888,2681.4,2680.8,3.73009]
[1724720331888,3.72941,2681.4,2680.9,0.04042162]
[1724720332389,3.72941,2681.4,2680.9,3.77046162]
[1724720333037,7.28,2681.5,2681.0,3.72994]
[1724720333498,7.28,2681.5,2681.1,0.03995779]
[1724720333705,11.00933,2681.5,2681.1,0.03995779]
[1724720333931,7.28,2681.5,2681.1,0.03995779]
[1724720334138,2.4589,2681.7,2681.2,4.10657078]
[1724720334348,7.28,2681.8,2681.4,3.72938]
[1724720334486,11.00891,2681.8,2681.3,0.03991499]
[1724720334826,11.00891,2681.8,2681.2,3.72953]
[1724720335027,11.00891,2681.8,2681.4,0.03982939]
[1724720335327,11.00891,2681.8,2681.3,3.72945]
[1724720335493,7.28,2681.8,2681.5,0.03950122]
[1724720336333,12.94702507,2681.8,2681.5,0.03950122]
[1724720336507,11.00886,2681.8,2681.5,0.03950122]
[1724720336708,14.73779,2681.8,2681.2,3.72953]
[1724720336906,11.00886,2681.8,2681.6,0.03924447]
[1724720337091,3.72897,2681.7,2681.2,3.72953]
[1724720337412,3.72897,2681.7,2681.3,0.03924447]
[1724720337815,3.72897,2681.7,2681.2,3.72953]
[1724720338007,3.72897,2681.7,2681.4,0.03924447]
[1724720338207,3.72897,2681.7,2681.2,3.72953]
[1724720338412,11.00886,2681.8,2681.5,0.03924447]
[1724720338727,11.00886,2681.8,2681.2,3.72953]
[1724720338928,11.00886,2681.8,2681.2,4.102483]
[1724720339135,7.28,2681.8,2681.4,3.72937]
[1724720339436,7.28,2681.8,2681.4,3.72932]
[1724720339737,7.28,2681.8,2681.5,3.76840447]
[1724720339905,7.28,2681.8,2681.6,3.72911]
[1724720340113,2.90875378,2682.5,2681.7,4.36645353]
[1724720340114,0.58441444,2682.5,2681.7,4.36645353]
[1724720340431,3.7278,2682.6,2682.1,3.72832]
[1724720340795,3.7278,2682.6,2682.2,0.03906621]
[1724720341029,4.716663,2682.6,2682.2,0.03906621]
[1724720341204,3.72776,2682.6,2682.2,0.03906621]
[1724720341405,3.72787,2682.5,2682.2,0.03906621]
[1724720341839,3.72787,2682.5,2682.0,3.72855]
[1724720342137,3.72787,2682.5,2681.9,6.05963]
[1724720342335,3.72787,2682.5,2682.1,0.03869553]
[1724720342637,4.716763,2682.5,2681.9,6.05962]
[1724720342834,4.716763,2682.5,2682.2,0.03869553]
[1724720343037,4.716763,2682.5,2681.9,6.05961]
[1724720343253,4.716763,2682.5,2682.3,0.03869553]
[1724720343553,0.988893,2682.5,2682.4,0.03869553]
[1724720343751,3.72776,2682.6,2682.4,0.03869553]
[1724720343949,3.72776,2682.6,2682.0,3.72855]
[1724720344089,3.72788,2682.5,2682.0,3.72855]
[1724720344295,3.72777,2682.6,2682.0,3.72855]
[1724720344893,3.72789,2682.5,2682.0,3.72855]
[1724720345344,3.72789,2682.5,2681.9,2.331]
[1724720345527,3.72789,2682.5,2681.9,6.05962]
[1724720345999,3.72789,2682.5,2682.0,3.72847]
[1724720348398,3.72789,2682.5,2681.9,9.78823]
[1724720348639,3.72789,2682.5,2682.1,0.03791837]
[1724720348934,3.72789,2682.5,2682.2,0.03791837]
[1724720349140,7.45586,2682.5,2682.2,0.03791837]
[1724720349442,7.45586,2682.5,2681.9,3.72861]
[1724720349443,3.72789,2682.5,2681.9,7.45723]
[1724720349649,3.72789,2682.5,2682.3,0.03791837]
[1724720349802,6.16096,2682.7,2682.0,3.72851]
[1724720349997,6.16089,2682.7,2682.2,3.72822]
[1724720350303,6.16089,2682.7,2682.2,7.45644]
[1724720350504,6.16089,2682.7,2682.3,0.03791837]
[1724720350712,3.72796,2682.5,2682.0,3.72846]
[1724720350927,3.72828,2682.2,2682.1,0.03791837]
[1724720351134,9.78216,2682.2,2682.1,0.03791837]
[1724720351348,9.78216,2682.2,2681.6,6.72911]
[1724720351517,9.78216,2682.2,2682.1,0.03791837]
[1724720351837,3.72843,2682.1,2681.6,10.45822]
[1724720352142,3.72843,2682.1,2681.6,6.72911]
[1724720352321,3.72843,2682.1,2681.6,10.45815]
[1724720352635,2.3256,2682.2,2681.7,3.72896]
[1724720353145,3.7281,2682.4,2681.8,3.72875]
[1724720353329,7.45621,2682.4,2681.8,3.72875]
[1724720353738,13.3335,2682.5,2682.0,3.72853]
[1724720354044,13.3335,2682.5,2682.0,3.72847]
[1724720355850,13.3335,2682.5,2681.8,3.7287]
[1724720356010,1.33335,2682.4,2681.8,3.7287]
[1724720356210,3.72821,2682.3,2681.8,3.7287]
[1724720357151,3.72842,2682.1,2681.6,6.72901]
[1724720357371,3.72842,2682.1,2681.5,3.72923]
[1724720357509,2.3256,2682.0,2681.4,3.72931]
[1724720357715,2.3256,2682.0,2681.5,3.72918]
[1724720357941,6.05416,2682.0,2681.5,3.72918]
[1724720358329,2.3256,2682.0,2681.2,4.12947108]
[1724720358526,2.3256,2682.0,2681.6,3.72911]
[1724720359420,6.05417,2682.0,2681.4,3.72925]
[1724720360450,6.05417,2682.0,2681.5,3.72923]
[1724720361562,1.93809208,2682.2,2681.7,3.72897]
[1724720361563,5.66644208,2682.2,2681.7,3.72897]
[1724720361765,3.72835,2682.2,2681.7,3.72897]
[1724720362559,1.93809208,2682.2,2681.8,3.72883]
[1724720362904,2.3256,2682.3,2681.9,3.72858]
[1724720362905,1.93809208,2682.3,2681.9,3.72858]
[1724720363186,1.93809208,2682.3,2681.9,7.45721]
[1724720363390,1.93809208,2682.4,2681.9,3.72858]
[1724720363673,5.66609208,2682.4,2682.0,0.03702613]
[1724720363823,1.93809208,2682.3,2682.0,0.03702613]
[1724720364748,3.72828,2682.2,2682.0,0.03702613]
[1724720365067,1.94133526,2682.2,2681.8,3.72874]
[1724720365224,1.94133526,2682.2,2682.1,0.03702613]
[1724720365427,1.94133526,2682.3,2681.8,3.72874]
[1724720365692,1.94133526,2682.3,2682.1,0.03702613]
[1724720365895,1.94133526,2682.3,2681.8,3.72874]
[1724720366190,3.72829,2682.2,2681.7,3.72889]
[1724720366496,1.94133526,2682.2,2681.9,0.03702613]
[1724720366626,1.94133526,2682.3,2681.7,3.72896]
[1724720366826,1.94133526,2682.2,2682.0,0.03702613]
[1724720367124,1.94133526,2682.2,2682.1,0.03702613]
[1724720367327,9.39502931,2682.4,2681.9,3.72861]
[1724720367328,1.94133526,2682.3,2681.9,3.72861]
[1724720367807,1.94133526,2682.3,2681.9,7.45722]
[1724720367978,1.94133526,2682.3,2682.0,0.03702613]
[1724720368278,5.66947526,2682.3,2682.0,0.03702613]
[1724720368829,5.66947526,2682.3,2681.8,3.72876]
[1724720369030,1.94133526,2682.4,2682.1,0.03706889]
[1724720369251,1.94133526,2682.4,2682.0,3.72853]
[1724720369448,1.94209581,2682.4,2682.2,0.03706889]
[1724720369673,1.94209581,2682.4,2682.0,3.72847]
[1724720369879,1.94209581,2682.4,2681.9,2.3537]
[1724720369880,1.94209581,2682.6,2682.3,3.76512889]
[1724720370174,11.00753,2682.8,2682.3,3.76512889]
[1724720370175,1.94209581,2682.8,2682.4,3.76496889]
[1724720370341,1.94209581,2682.9,2682.4,3.76496889]
[1724720370544,5.66942581,2682.9,2682.4,3.83952204]
[1724720370746,5.66942581,2682.9,2682.4,3.7279]
[1724720370941,9.39682581,2682.9,2682.5,0.03706889]
[1724720371168,5.66942581,2682.9,2682.5,0.03706889]
[1724720371530,3.72733,2682.9,2682.5,3.76491889]
[1724720371766,5.66942581,2682.9,2682.5,0.03706889]
[1724720372166,5.66942581,2682.9,2682.3,6.83106089]
[1724720372334,5.66942581,2682.9,2682.6,0.03706889]
[1724720372335,9.39680581,2682.9,2682.6,0.03706889]
[1724720372534,5.66942581,2682.9,2682.4,3.72799]
[1724720372733,5.66942581,2682.9,2682.5,0.03706889]
[1724720373439,1.94209581,2682.9,2682.5,0.03706889]
[1724720373671,5.66926581,2683.0,2682.5,0.03706889]
[1724720374070,1.94209581,2683.0,2682.5,3.76484889]
[1724720374252,1.94134796,2682.9,2682.5,3.76484889]
[1724720374872,3.72717,2683.0,2682.5,3.76484889]
[1724720374873,5.66851796,2683.0,2682.5,3.76484889]
[1724720377482,3.72732,2682.9,2682.5,0.03706889]
[1724720377857,3.85562876,2683.0,2682.5,3.76491889]
[1724720377858,5.6414508,2683.0,2682.5,3.76491889]
[1724720378265,7.58279876,2683.0,2682.5,3.76491889]
[1724720378583,9.39556796,2683.1,2682.6,3.7277]
[1724720378796,1.94134796,2683.0,2682.6,3.7277]
[1724720378954,1.94134796,2683.0,2682.7,0.03706889]
[1724720378955,1.9412918,2683.0,2682.7,0.03706889]
[1724720379675,5.6684618,2683.0,2682.7,0.03706889]
[1724720380035,5.6684618,2683.0,2682.4,7.45579]
[1724720380258,1.9412918,2683.0,2682.8,0.03706889]
[1724720380509,1.9412918,2683.0,2682.5,3.72775]
[1724720380730,1.9412918,2683.0,2682.9,0.03664129]
[1724720380876,5.6684618,2683.0,2682.5,3.72775]
[1724720381278,5.6684618,2683.0,2682.6,0.03664129]
[1724720381490,1.9412918,2682.9,2682.6,0.03664129]
[1724720382004,5.6686018,2682.9,2682.6,0.03664129]
[1724720382187,9.92236,2682.7,2682.6,0.03664129]
[1724720382509,9.92236,2682.7,2682.2,3.72825]
[1724720382510,9.9225,2682.7,2682.2,3.72825]
[1724720382673,5.66942568,2682.6,2682.0,3.72842]
[1724720382870,1.94169568,2682.6,2682.3,0.03541509]
[1724720383126,1.94169568,2682.6,2682.1,3.72832]
[1724720383346,1.94169568,2682.6,2682.4,0.03541509]
[1724720383515,5.66955568,2682.5,2681.9,3.72862]
[1724720384826,5.66955568,2682.5,2681.8,3.72872]
[1724720385033,1.94169568,2682.4,2681.8,3.72872]
[1724720385415,3.72815,2682.3,2681.8,3.72872]
[1724720385653,5.66984568,2682.3,2681.8,3.72872]
[1724720386516,1.94169568,2682.4,2681.8,3.72872]
[1724720386721,1.94169568,2682.4,2681.8,5.45060381]
[1724720386928,5.66955568,2682.5,2681.9,3.72868]
[1724720387528,1.94169568,2682.4,2681.9,3.72868]
[1724720388622,5.66971568,2682.4,2681.8,5.45060381]
[1724720388828,5.66971568,2682.4,2681.8,3.72871]
[1724720389344,5.66971568,2682.4,2681.9,3.72867]
[1724720391447,5.66971568,2682.4,2682.0,3.72847]
[1724720391448,1.94169568,2682.4,2682.0,3.72847]
[1724720391920,1.94169568,2682.4,2682.0,7.45694]
[1724720392118,1.94169568,2682.5,2682.0,3.72847]
[1724720392319,1.94169568,2682.5,2682.0,7.45695]
[1724720392522,1.94169568,2682.5,2682.1,3.72842]
[1724720393122,1.94169568,2682.5,2682.0,3.72847]
[1724720393318,1.94212268,2682.5,2682.0,3.72847]
[1724720393549,1.94212268,2682.5,2682.1,3.76377509]
[1724720394307,1.94212268,2682.5,2682.3,3.72813]
[1724720394514,1.94212268,2682.6,2682.3,3.72813]
[1724720394821,1.94212268,2682.6,2682.4,0.03562173]
[1724720395023,1.94212268,2682.6,2682.2,3.72815]
[1724720395228,1.94212268,2682.6,2682.5,0.03562173]
[1724720395435,1.94212268,2682.6,2682.2,3.72815]
[1724720395638,1.94212268,2682.6,2682.5,0.03562173]
[1724720395825,1.94212268,2682.6,2682.2,3.72815]
[1724720396023,1.94212268,2682.6,2682.5,0.03562173]
[1724720396229,1.94212268,2682.6,2682.3,3.72813]
[1724720396448,1.94212268,2682.6,2682.1,0.74922451]
[1724720396449,1.94212268,2682.6,2682.5,0.03562173]
[1724720396650,4.77445199,2682.6,2681.8,3.72878]
[1724720396865,1.94191627,2682.4,2681.9,3.72857]
[1724720397154,1.94191627,2682.5,2682.1,3.72841]
[1724720397451,1.94191627,2682.5,2682.0,3.72844]
[1724720397654,5.66984627,2682.5,2682.0,3.72844]
[1724720398011,5.66975058,2682.5,2682.0,3.72844]
[1724720400983,5.66984058,2682.4,2681.9,3.72867]
[1724720401283,3.72906,2681.7,2680.9,3.73003]
[1724720401420,3.72964,2681.3,2680.6,3.73049]
[1724720401616,5.67059349,2681.5,2680.9,3.72997]
[1724720401919,2.356,2681.6,2680.9,6.22277]
[1724720401920,6.08511,2681.6,2680.9,6.22277]
[1724720402228,1.94128349,2681.7,2681.1,3.72972]
[1724720402434,1.94128349,2682.1,2681.7,3.72887]
[1724720402640,1.94128349,2682.2,2681.7,3.72887]
[1724720402887,2.356,2682.3,2681.6,3.75651808]
[1724720402888,8.02545349,2682.3,2681.6,3.72898]
[1724720403012,8.02545349,2682.3,2681.7,3.72896]
[1724720403228,4.29728349,2682.3,2681.7,4.474774]
[1724720403425,4.29728349,2682.3,2681.7,3.72888]
[1724720403655,4.29728349,2682.3,2681.2,4.102592]
[1724720403656,5.66985349,2682.0,2681.3,3.72942]
[1724720403856,6.08481,2681.9,2681.3,3.72942]
[1724720404659,1.94128349,2682.1,2681.5,2.4928]
[1724720404967,8.02542349,2682.3,2681.7,3.72886]
[1724720405167,1.94128349,2682.2,2681.7,3.72886]
[1724720405391,5.66959349,2682.2,2681.7,3.72886]
[1724720405670,5.66959349,2682.2,2681.7,4.78643318]
[1724720405819,5.66894784,2682.2,2681.7,1.05757318]
[1724720406023,5.66894784,2682.2,2681.5,3.72914]
[1724720406341,2.356,2682.3,2681.3,3.72944]
[1724720406342,2.356,2681.8,2681.3,3.72944]
[1724720406714,2.356,2681.8,2681.4,3.72939]
[1724720406913,5.66922784,2682.0,2681.4,3.72939]
[1724720407158,3.72871,2681.9,2681.4,0.7831802]
[1724720407561,3.72885,2681.8,2681.4,0.7831802]
[1724720407718,3.72885,2681.8,2680.8,3.73021]
[1724720407719,6.0852,2681.6,2680.9,6.22277]
[1724720407918,2.356,2681.6,2681.1,3.72971]
[1724720408738,6.08514,2681.6,2681.1,3.72971]
[1724720408938,2.356,2681.6,2681.1,3.72971]
[1724720409274,4.29663784,2682.0,2681.4,2.4928]
[1724720409565,2.356,2682.0,2681.5,3.72917]
[1724720409779,2.356,2682.0,2681.5,7.45834]
[1724720409960,5.66897784,2682.2,2681.6,3.72903]
[1724720410321,6.08416,2682.3,2681.7,3.72897]
[1724720410534,1.93962409,2682.3,2682.0,3.72853]
[1724720410792,4.29562409,2682.6,2682.1,3.80288431]
[1724720410990,6.08381,2682.6,2682.1,3.72832]
[1724720412339,7.98690341,2682.6,2681.9,3.72859]
[1724720412684,3.72827,2682.3,2681.7,3.72891]
[1724720412895,5.66789409,2682.3,2681.7,3.72891]
[1724720413072,4.26682409,2682.2,2681.5,3.72917]
[1724720413388,2.6627797,2683.2,2682.1,3.75651808]
[1724720413536,2.3272,2683.2,2682.5,3.72782]
[1724720413854,2.3272,2683.2,2682.2,4.10390181]
[1724720414053,6.05409,2683.2,2682.3,3.7281]
[1724720414403,3.72705,2683.1,2682.3,3.7281]
[1724720414536,2.3272,2683.2,2682.5,3.72779]
[1724720414885,2.3272,2683.2,2682.5,4.473366]
[1724720416236,2.3272,2683.2,2682.5,0.745576]
[1724720416459,6.05412,2683.2,2682.5,0.745576]
[1724720416633,6.05412,2683.2,2682.4,3.72797]
[1724720417637,3.72717,2683.0,2682.2,4.10391181]
[1724720417838,3.7272,2683.0,2681.8,9.89141808]
[1724720418099,3.7272,2683.0,2681.8,3.7288]
[1724720418100,2.3272,2682.7,2681.8,3.7288]
[1724720418434,6.05478,2682.7,2681.6,0.56153406]
[1724720418600,6.05478,2682.7,2681.8,3.72882]
[1724720418601,3.72775,2682.6,2681.8,3.72882]
[1724720419600,3.72787,2682.5,2681.8,3.72882]
[1724720420201,1.93914802,2682.6,2681.9,3.72869]
[1724720420711,1.93914802,2682.6,2682.1,3.72839]
[1724720420908,4.26634802,2682.7,2682.1,3.72839]
[1724720421108,2.3272,2682.7,2682.3,3.72812]
[1724720421308,4.26634802,2682.7,2682.3,3.72812]
[1724720421514,5.72098282,2682.7,2682.1,3.72839]
[1724720421901,5.72098282,2682.7,2681.7,3.72892]
[1724720421902,3.72787,2682.5,2681.7,3.72892]
[1724720422131,3.72787,2682.5,2681.6,4.31805214]
[1724720422132,1.93914802,2682.5,2681.9,3.72868]
[1724720422319,3.72802,2682.4,2681.8,3.72883]
[1724720422518,3.72802,2682.4,2681.5,3.72912]
[1724720422519,3.72814,2682.3,2681.6,3.72899]
[1724720422743,2.3272,2682.1,2681.6,3.72899]
[1724720423056,6.054807,2682.5,2681.6,3.72899]
[1724720423057,1.93914802,2683.1,2682.8,3.72731]
[1724720423206,2.3272,2683.2,2682.8,3.72739]
[1724720424606,4.26721765,2683.2,2682.3,6.72812]
[1724720424852,2.3272,2683.2,2682.8,3.72733]
[1724720426142,2.3272,2683.2,2682.6,3.72761]
[1724720426638,4.26721765,2683.2,2682.5,3.72785]
[1724720426840,2.3272,2683.2,2682.5,3.72785]
[1724720427244,2.3272,2683.2,2682.7,3.72749]
[1724720427542,2.3272,2683.2,2682.8,3.72741]
[1724720427843,2.3272,2683.2,2682.7,4.473024]
[1724720428047,2.3272,2683.2,2682.7,3.72749]
[1724720428340,2.3272,2683.2,2682.8,3.72743]
[1724720428904,2.3272,2683.2,2682.1,3.75651808]
[1724720429109,2.3272,2683.2,2682.0,3.0]
[1724720429110,2.4709,2683.5,2683.0,3.72706]
[1724720429333,2.4709,2683.5,2683.3,3.72675]
[1724720430016,2.4709,2683.5,2683.1,0.372706]
[1724720430017,4.41091765,2683.9,2683.1,0.372706]
[1724720430352,2.4709,2683.9,2683.5,3.72636]
[1724720432606,2.4709,2683.9,2683.4,3.72661]
[1724720434251,2.4709,2683.9,2683.5,3.72637]
[1724720434464,2.4709,2683.9,2683.5,4.471678]
[1724720435245,3.72618,2683.8,2683.2,3.7268]
[1724720435559,2.4709,2683.6,2683.1,3.72696]
[1724720435764,2.4709,2683.6,2683.1,3.72693]
[1724720436315,2.4709,2683.6,2683.2,3.72688]
[1724720436618,2.4709,2683.6,2683.1,3.72693]
[1724720436823,2.71799,2683.6,2683.1,7.45387]
[1724720437023,2.71799,2683.6,2683.2,3.72681]
[1724720437237,2.71799,2683.6,2683.3,3.72675]
[1724720437238,2.4709,2683.6,2683.3,3.72675]
[1724720437599,2.4709,2684.0,2683.5,3.72647]
[1724720438071,2.4709,2684.0,2683.5,7.45286]
[1724720438222,2.4709,2684.0,2683.5,3.72639]
[1724720438421,3.090561,2684.0,2683.3,3.72665]
[1724720438652,3.090561,2684.0,2683.5,3.72642]
[1724720439928,6.816381,2684.0,2683.5,3.72642]
[1724720440130,3.090561,2684.0,2683.5,3.72642]
[1724720441420,6.816351,2684.0,2683.5,3.72642]
[1724720441765,4.7801261,2683.9,2683.4,3.7266]
[1724720442782,2.46,2683.5,2683.0,3.72715]
[1724720442951,2.46,2683.5,2683.0,3.72707]
[1724720443292,2.46,2683.5,2683.2,3.72682]
[1724720443928,2.46,2683.5,2683.0,7.45413]
[1724720444126,3.72676,2683.3,2682.8,7.38]
[1724720444325,3.72676,2683.3,2682.4,12.41]
[1724720444326,3.72676,2683.3,2682.6,3.72765]
[1724720444581,2.46,2683.0,2682.4,7.45581]
[1724720444886,2.46,2682.6,2682.0,3.72847]
[1724720445025,2.46,2682.6,2682.0,7.45693]
[1724720445229,2.46,2682.6,2682.1,3.72841]
[1724720445635,3.72788,2682.5,2682.0,3.72846]
[1724720445836,3.72788,2682.5,2681.9,3.72867]
[1724720446041,3.72808,2682.4,2681.7,3.72889]
[1724720446453,3.72808,2682.4,2681.7,7.45777]
[1724720446669,3.72871,2681.9,2681.3,3.72946]
[1724720446879,3.72898,2681.7,2681.1,3.72976]
[1724720447086,2.46,2681.6,2681.3,3.72951]
[1724720447375,2.46,2682.0,2681.6,7.45809]
[1724720447892,2.46,2682.0,2681.7,3.72897]
[1724720448031,2.46,2682.0,2681.8,3.72882]
[1724720448231,2.46,2682.4,2681.9,3.72859]
[1724720448433,2.46,2682.4,2681.8,8.203343]
[1724720448644,2.46,2682.4,2681.8,0.745783]
[1724720448862,2.46,2682.4,2681.5,7.48570808]
[1724720448863,2.46,2682.8,2682.1,3.72834]
[1724720449031,2.46,2682.8,2682.3,3.72806]
[1724720449373,2.46,2682.8,2682.5,3.72785]
[1724720449545,2.46,2682.8,2682.5,7.45562]
[1724720449752,2.46,2682.8,2682.5,3.72777]
[1724720450274,2.46,2682.8,2682.3,3.72804]